bitfinex-derivatives/quotes_BTCF0:USTF0_20251028
["timestamp","ask_amount","ask_price","bid_price","bid_amount"]
[1761612361735,0.03484352,114030.0,114020.0,0.58715625]
[1761612361934,0.39564352,114030.0,114020.0,0.26687491]
[1761612362139,0.39564352,114030.0,114020.0,0.57153725]
[1761612362340,0.99564352,114030.0,114020.0,0.41920608]
[1761612362541,0.99564352,114030.0,114020.0,0.57153725]
[1761612362740,0.99564352,114030.0,114020.0,0.26687491]
[1761612362943,0.54797469,114030.0,114020.0,0.41920608]
[1761612363241,0.39564352,114030.0,114020.0,0.41920608]
[1761612363830,0.39564352,114030.0,114020.0,0.57153725]
[1761612367245,0.39564352,114030.0,114020.0,0.42443725]
[1761612368047,0.99564352,114030.0,114020.0,0.36131234]
[1761612368848,0.99564352,114030.0,114020.0,0.20898117]
[1761612370140,0.99564352,114030.0,114020.0,0.36131234]
[1761612373239,1.15686992,114030.0,114020.0,0.02152]
[1761612373444,0.55686992,114030.0,114010.0,0.27249608]
[1761612373747,0.40388,114020.0,114010.0,0.27249608]
[1761612373940,0.40388,114020.0,114010.0,0.20937117]
[1761612375544,0.40388,114020.0,114010.0,0.21037117]
[1761612376151,0.40988,114020.0,114010.0,0.21037117]
[1761612376441,0.56221117,114020.0,114010.0,0.21037117]
[1761612376648,0.40988,114020.0,114010.0,0.21037117]
[1761612378556,0.40388,114020.0,114010.0,0.21037117]
[1761612378850,0.40988,114020.0,114010.0,0.20937117]
[1761612380852,0.40988,114020.0,114010.0,0.05704]
[1761612381149,0.72098234,114020.0,114000.0,1.34817]
[1761612381451,0.55621117,114010.0,114000.0,0.04437]
[1761612381641,0.55621117,114010.0,114000.0,0.19670117]
[1761612381838,0.55621117,114010.0,113990.0,0.48437]
[1761612381839,0.0046,114000.0,113990.0,0.48437]
[1761612382048,0.75314234,114000.0,113980.0,0.0578]
[1761612382247,0.55621117,113990.0,113980.0,0.0578]
[1761612382739,0.55621117,113990.0,113980.0,0.21013117]
[1761612384450,0.56221117,113990.0,113980.0,0.21013117]
[1761612388058,0.57086505,113990.0,113980.0,0.21013117]
[1761612389657,0.41853388,113990.0,113980.0,0.21013117]
[1761612389958,0.57086505,113990.0,113980.0,0.21013117]
[1761612390459,0.58188505,113990.0,113980.0,0.04437]
[1761612390659,0.58188505,113990.0,113980.0,0.02207]
[1761612391162,0.58188505,113990.0,113970.0,0.21163117]
[1761612391463,0.55685117,113980.0,113970.0,0.21163117]
[1761612391758,0.40452,113980.0,113970.0,0.0593]
[1761612392558,0.5634636,113980.0,113960.0,0.05938413]
[1761612392758,0.5570236,113970.0,113960.0,8.413e-05]
[1761612393060,0.5870236,113970.0,113960.0,8.413e-05]
[1761612393650,0.43452,113970.0,113960.0,8.413e-05]
[1761612393849,0.5870236,113970.0,113960.0,0.02329413]
[1761612394258,0.5930236,113970.0,113960.0,0.04595413]
[1761612394564,0.44052,113970.0,113960.0,0.04595413]
[1761612397065,0.5930236,113970.0,113960.0,8.413e-05]
[1761612397260,1.1930236,113970.0,113940.0,0.01358]
[1761612397460,0.04372,113940.0,113930.0,0.2119536]
[1761612397763,0.39595854,113940.0,113930.0,0.2119536]
[1761612398364,0.39602709,113940.0,113930.0,0.2119536]
[1761612398963,0.37395709,113940.0,113930.0,0.2997279]
[1761612399268,0.38786855,113940.0,113930.0,0.05945]
[1761612399458,0.38786855,113940.0,113930.0,0.2119536]
[1761612399661,0.38786855,113940.0,113930.0,0.2129536]
[1761612399961,0.39386855,113940.0,113930.0,0.2129536]
[1761612400161,0.39386855,113940.0,113930.0,0.06045]
[1761612400664,0.39386855,113940.0,113930.0,0.2129536]
[1761612406570,0.39386855,113940.0,113930.0,0.3007279]
[1761612407170,0.39386855,113940.0,113930.0,0.2129536]
[1761612408069,0.39386855,113940.0,113930.0,0.3007279]
[1761612409869,0.36686855,113940.0,113930.0,0.4532315]
[1761612410070,0.3608,113950.0,113940.0,0.1472166]
[1761612410371,0.3608,113950.0,113940.0,0.4522238]
[1761612410767,0.3743,113950.0,113940.0,0.4522238]
[1761612411075,0.3878,113950.0,113940.0,0.4522238]
[1761612412572,0.3938,113950.0,113940.0,0.4542238]
[1761612416078,0.3938,113950.0,113940.0,0.1492166]
[1761612416270,0.3938,113950.0,113940.0,0.3017202]
[1761612416466,0.3938,113950.0,113940.0,0.1492166]
[1761612417279,0.3938,113950.0,113940.0,0.3017202]
[1761612418879,0.3938,113950.0,113940.0,0.2139536]
[1761612419479,0.3938,113950.0,113940.0,0.3017202]
[1761612420177,0.41657108,113950.0,113940.0,0.3017202]
[1761612420383,0.41657108,113950.0,113940.0,0.2139536]
[1761612420883,0.41657108,113950.0,113940.0,0.06145]
[1761612421981,0.5925885,113950.0,113940.0,0.002]
[1761612422380,0.61545183,113950.0,113940.0,0.002]
[1761612422567,1.21545183,113950.0,113940.0,0.002]
[1761612424174,1.21545183,113950.0,113940.0,0.007]
[1761612426273,1.21552847,113950.0,113940.0,0.007]
[1761612426479,0.61552847,113950.0,113940.0,0.007]
[1761612427686,1.21552847,113950.0,113940.0,0.007]
[1761612427982,1.57632847,113950.0,113940.0,0.007]
[1761612428777,0.82382487,113950.0,113940.0,0.05251]
[1761612428977,0.82382487,113950.0,113940.0,0.06543]
[1761612429293,0.82382487,113950.0,113940.0,0.007]
[1761612429585,0.32472847,113950.0,113910.0,0.2109936]
[1761612429788,0.00988,113920.0,113910.0,0.2109936]
[1761612430084,0.3608,113930.0,113920.0,0.03451]
[1761612430286,0.3608,113930.0,113920.0,0.05783]
[1761612430287,0.74437325,113930.0,113920.0,0.05783]
[1761612430976,0.74437325,113930.0,113920.0,0.2103336]
[1761612431173,0.7216,113930.0,113920.0,0.2103336]
[1761612431583,0.7276,113930.0,113920.0,0.2163336]
[1761612432481,0.75906533,113930.0,113920.0,0.2163336]
[1761612432677,0.91156893,113930.0,113920.0,0.06383]
[1761612432884,0.91156893,113930.0,113920.0,0.04051]
[1761612433285,0.75906533,113930.0,113920.0,0.04051]
[1761612433687,0.75036656,113930.0,113920.0,0.06383]
[1761612433887,0.75035864,113930.0,113920.0,0.06383]
[1761612435991,0.75931153,113930.0,113920.0,0.06383]
[1761612436194,0.75035864,113930.0,113920.0,0.06383]
[1761612437391,0.75035864,113930.0,113920.0,0.2163336]
[1761612437695,0.75033946,113930.0,113920.0,0.2163336]
[1761612438086,0.7276,113930.0,113920.0,0.2163336]
[1761612440295,0.7276,113930.0,113920.0,0.06383]
[1761612440597,0.7276,113930.0,113920.0,0.04051]
[1761612440981,0.8801036,113930.0,113920.0,0.006]
[1761612441494,0.90284003,113930.0,113920.0,0.006]
[1761612442202,0.7276,113930.0,113920.0,0.006]
[1761612442600,0.75033669,113930.0,113920.0,0.006]
[1761612442898,0.75033669,113930.0,113920.0,0.06383]
[1761612446597,0.75033669,113930.0,113920.0,0.2163336]
[1761612447802,0.75033669,113930.0,113920.0,0.06383]
[1761612450204,0.75033669,113930.0,113920.0,0.2163336]
[1761612451998,0.75033669,113930.0,113920.0,0.06383]
[1761612452605,0.75033669,113930.0,113920.0,0.2163336]
[1761612453296,0.75033669,113930.0,113920.0,0.06383]
[1761612453802,0.75033669,113930.0,113920.0,0.21645915]
[1761612454206,0.75033669,113930.0,113920.0,0.3690883]
[1761612455597,0.7276,113930.0,113920.0,0.3690883]
[1761612456399,0.75062906,113930.0,113920.0,0.4568703]
[1761612456805,0.7276,113930.0,113920.0,0.4568703]
[1761612457309,0.75063211,113930.0,113920.0,0.4568703]
[1761612458004,0.7276,113930.0,113920.0,0.4568703]
[1761612458408,0.7276,113930.0,113920.0,0.3690883]
[1761612458803,0.7276,113930.0,113920.0,0.06383]
[1761612459108,0.7276,113930.0,113920.0,0.3690883]
[1761612459312,0.75063842,113930.0,113920.0,0.3690883]
[1761612464111,0.75063842,113930.0,113920.0,0.4568703]
[1761612465113,0.75063842,113930.0,113920.0,0.3690883]
[1761612466205,0.75063842,113930.0,113920.0,0.4568703]
[1761612468910,0.7276,113930.0,113920.0,0.4568703]
[1761612472216,0.7216,113930.0,113920.0,0.4508703]
[1761612472416,0.7276,113930.0,113920.0,0.4508703]
[1761612475218,0.7276,113930.0,113920.0,0.3630883]
[1761612475423,0.7276,113930.0,113920.0,0.21045915]
[1761612475825,0.7276,113930.0,113920.0,0.145612]
[1761612476140,0.88022915,113930.0,113920.0,0.21045915]
[1761612476521,0.88022915,113930.0,113920.0,0.29824115]
[1761612476722,0.7276,113930.0,113920.0,0.29824115]
[1761612476922,0.90325802,113930.0,113920.0,0.21045915]
[1761612477118,0.75062887,113930.0,113920.0,0.21045915]
[1761612480327,0.90325802,113930.0,113910.0,0.18823915]
[1761612480528,0.51342915,113920.0,113910.0,0.20976915]
[1761612481221,0.51342915,113920.0,113910.0,0.18823915]
[1761612481416,0.51342915,113920.0,113910.0,0.16554915]
[1761612481821,0.51342915,113920.0,113910.0,0.18823915]
[1761612482128,0.51942915,113920.0,113910.0,0.20976915]
[1761612482427,0.3668,113920.0,113910.0,0.20976915]
[1761612484129,0.51942915,113920.0,113910.0,0.20976915]
[1761612484331,0.3668,113920.0,113910.0,0.20976915]
[1761612484521,0.3668,113920.0,113910.0,0.05714]
[1761612484725,0.51942915,113920.0,113910.0,0.03561]
[1761612484933,0.51942915,113920.0,113910.0,0.18823915]
[1761612485236,0.51942915,113920.0,113910.0,0.20976915]
[1761612486835,0.3668,113920.0,113910.0,0.20976915]
[1761612487136,0.51942915,113920.0,113910.0,0.20976915]
[1761612488134,0.51942915,113920.0,113910.0,0.01292]
[1761612488337,0.51942915,113920.0,113910.0,0.20811915]
[1761612489239,0.3668,113920.0,113910.0,0.20811915]
[1761612489433,0.51942915,113920.0,113910.0,0.20811915]
[1761612489738,0.3668,113920.0,113910.0,0.20811915]
[1761612489937,0.51942915,113920.0,113910.0,0.20811915]
[1761612491040,0.3668,113920.0,113910.0,0.20811915]
[1761612491240,0.51942915,113920.0,113910.0,0.20811915]
[1761612492039,0.3668,113920.0,113910.0,0.20811915]
[1761612492449,0.51942915,113920.0,113910.0,0.20811915]
[1761612494747,0.51942915,113920.0,113910.0,0.05549]
[1761612494947,0.51942915,113920.0,113910.0,0.20811915]
[1761612495248,0.3668,113920.0,113910.0,0.20811915]
[1761612495448,0.51942915,113920.0,113910.0,0.20811915]
[1761612497153,0.51942915,113920.0,113910.0,0.05549]
[1761612497552,0.51942915,113920.0,113910.0,0.20811915]
[1761612498255,0.51942915,113920.0,113910.0,0.05549]
[1761612498454,0.7020583,113920.0,113900.0,0.11867625]
[1761612498646,0.51342915,113910.0,113900.0,0.20812915]
[1761612499854,0.52231938,113910.0,113900.0,0.20812915]
[1761612500154,0.52231938,113910.0,113900.0,0.0565]
[1761612500349,0.52931938,113910.0,113900.0,0.0565]
[1761612500550,0.52931938,113910.0,113900.0,0.20912915]
[1761612500943,0.52931938,113910.0,113900.0,0.0565]
[1761612501147,0.52931938,113910.0,113900.0,0.20912915]
[1761612501355,0.52931938,113910.0,113900.0,0.0565]
[1761612501855,0.52931938,113910.0,113900.0,0.20912915]
[1761612502250,0.68194853,113910.0,113900.0,0.0011]
[1761612502551,0.035,113900.0,113880.0,0.05556371]
[1761612502744,0.15262915,113890.0,113880.0,0.05556371]
[1761612502948,0.00249629,113880.0,113860.0,0.06317625]
[1761612503147,0.00249629,113880.0,113840.0,0.05549]
[1761612503148,0.7216,113870.0,113840.0,0.05549]
[1761612503350,0.7216,113850.0,113840.0,0.05549]
[1761612503553,0.74453692,113850.0,113840.0,0.05549]
[1761612503754,0.74453692,113850.0,113840.0,0.20811915]
[1761612504058,0.74461797,113850.0,113840.0,0.3607483]
[1761612504250,0.72168105,113850.0,113840.0,0.05549]
[1761612504449,0.72168105,113850.0,113840.0,0.3607483]
[1761612504646,0.72768105,113850.0,113840.0,0.448592]
[1761612504853,0.3608,113860.0,113850.0,0.143326]
[1761612505052,0.3608,113860.0,113850.0,0.4485843]
[1761612505552,0.3608,113860.0,113850.0,0.05549]
[1761612505952,0.3608,113860.0,113850.0,0.20811915]
[1761612506153,0.3608,113860.0,113850.0,0.05549]
[1761612506453,0.51342915,113860.0,113850.0,0.20811915]
[1761612506652,0.3608,113860.0,113850.0,0.05549]
[1761612506957,0.3668,113860.0,113850.0,0.20811915]
[1761612507158,0.3668,113860.0,113850.0,0.3607483]
[1761612507453,0.3608,113860.0,113850.0,0.3607483]
[1761612507653,0.3668,113860.0,113850.0,0.4485843]
[1761612509246,0.006,113860.0,113850.0,0.4485843]
[1761612509758,0.006,113860.0,113850.0,1.0485843]
[1761612511054,0.006,113860.0,113850.0,1.1956843]
[1761612513163,0.3608,113880.0,113870.0,0.1461806]
[1761612513359,0.3608,113880.0,113870.0,0.4514389]
[1761612513756,0.3608,113880.0,113870.0,0.29890473]
[1761612515857,0.3708,113900.0,113890.0,0.1008652]
[1761612516054,0.3708,113900.0,113890.0,0.29888933]
[1761612517455,0.3708,113900.0,113890.0,0.1461652]
[1761612517664,0.3708,113900.0,113890.0,0.29888933]
[1761612518069,0.014,113900.0,113890.0,0.46261346]
[1761612518367,0.014,113900.0,113890.0,0.30988933]
[1761612518661,0.014,113900.0,113890.0,0.46261346]
[1761612519365,0.014,113900.0,113890.0,0.30988933]
[1761612519564,0.014,113900.0,113890.0,0.31288933]
[1761612519765,0.014,113900.0,113890.0,0.31388933]
[1761612520165,0.013,113900.0,113890.0,0.46461346]
[1761612520359,0.013,113900.0,113890.0,0.31188933]
[1761612521466,0.013,113900.0,113890.0,1.42541346]
[1761612521769,0.3608,113930.0,113920.0,0.146142]
[1761612522065,0.37232,113930.0,113920.0,0.29886613]
[1761612522666,0.3608,113930.0,113920.0,0.29886613]
[1761612523367,0.3628,113930.0,113920.0,0.30286613]
[1761612524368,0.3608,113930.0,113920.0,0.29886613]
[1761612524664,0.3638,113930.0,113920.0,0.74586613]
[1761612525958,0.3608,113930.0,113920.0,0.73886613]
[1761612526166,0.3628,113930.0,113920.0,0.74586613]
[1761612526664,0.38384,113930.0,113920.0,0.586142]
[1761612526871,0.54808413,113930.0,113920.0,0.01]
[1761612527064,0.19728413,113930.0,113920.0,0.01]
[1761612527262,1.51888413,113930.0,113920.0,0.01]
[1761612527467,1.54290925,113930.0,113920.0,0.01]
[1761612527767,0.94290925,113930.0,113920.0,0.01]
[1761612529463,2.19290925,113930.0,113920.0,1e-08]
[1761612529775,1.61649879,113930.0,113920.0,1e-08]
[1761612530163,1.64792436,113930.0,113920.0,1e-08]
[1761612530765,1.71449696,113930.0,113880.0,0.29900043]
[1761612530974,0.38384,113900.0,113890.0,0.05836]
[1761612531169,0.74464,113900.0,113890.0,0.05836]
[1761612532173,0.74464,113900.0,113890.0,0.05936]
[1761612532668,0.74464,113900.0,113890.0,0.21208413]
[1761612533068,0.74864,113900.0,113890.0,0.22808413]
[1761612534869,0.74864,113900.0,113890.0,0.07536]
[1761612535072,0.74864,113900.0,113890.0,0.22808413]
[1761612537471,0.74864,113900.0,113890.0,0.07536]
[1761612540674,0.90136413,113900.0,113890.0,0.07536]
[1761612540874,0.74864,113900.0,113890.0,0.07536]
[1761612541378,0.7727308,113900.0,113890.0,0.07536]
[1761612541570,0.74864,113900.0,113890.0,0.07536]
[1761612542076,0.74464,113900.0,113890.0,0.21208413]
[1761612542276,0.74764,113900.0,113890.0,0.06136]
[1761612542976,0.74764,113900.0,113890.0,0.21408413]
[1761612543278,0.75064,113900.0,113890.0,0.21408413]
[1761612543775,0.74012,113900.0,113890.0,0.30188923]
[1761612543976,0.75164,113900.0,113890.0,0.30188923]
[1761612545378,0.75164,113900.0,113890.0,0.21408413]
[1761612545782,0.7286,113900.0,113890.0,0.1491651]
[1761612546081,0.7286,113900.0,113890.0,0.30188923]
[1761612546281,0.7286,113900.0,113890.0,0.1491651]
[1761612546481,0.3678,113900.0,113890.0,0.30188923]
[1761612547183,0.3678,113900.0,113890.0,0.90188923]
[1761612548983,0.39084,113900.0,113890.0,0.90188923]
[1761612549385,0.3678,113900.0,113890.0,0.90188923]
[1761612551986,0.3678,113900.0,113890.0,1.04898923]
[1761612552382,0.35914441,113900.0,113890.0,1.04898923]
[1761612552583,0.35914441,113900.0,113890.0,0.44898923]
[1761612552782,0.007,113900.0,113890.0,0.60171336]
[1761612553086,0.007,113900.0,113890.0,0.44898923]
[1761612553676,0.007,113900.0,113890.0,0.60171336]
[1761612553879,0.007,113900.0,113890.0,0.96251336]
[1761612554085,0.007,113900.0,113890.0,0.80978923]
[1761612557584,0.007,113900.0,113890.0,1.40978923]
[1761612563096,0.007,113900.0,113890.0,0.80978923]
[1761612563291,0.007,113900.0,113890.0,0.96251336]
[1761612563993,0.007,113900.0,113890.0,0.80978923]
[1761612564395,0.007,113900.0,113890.0,0.96251336]
[1761612564701,0.007,113900.0,113890.0,0.80978923]
[1761612565495,0.007,113900.0,113890.0,0.96251336]
[1761612566496,0.007,113900.0,113890.0,0.80978923]
[1761612567395,0.007,113900.0,113890.0,0.6570651]
[1761612567597,0.007,113900.0,113890.0,0.80978923]
[1761612568095,0.007,113900.0,113890.0,1.40978923]
[1761612568696,0.007,113900.0,113890.0,1.56251336]
[1761612569298,0.007,113900.0,113890.0,2.30550923]
[1761612570699,0.007,113900.0,113890.0,2.45823336]
[1761612571194,0.007,113900.0,113890.0,2.53697727]
[1761612571698,0.3608,113930.0,113920.0,0.145272]
[1761612571891,0.38384,113930.0,113920.0,0.29799613]
[1761612573002,0.38584,113930.0,113920.0,0.29799613]
[1761612573699,0.3618,113930.0,113920.0,0.29799613]
[1761612573899,0.3688,113930.0,113920.0,0.30099613]
[1761612574103,0.008,113930.0,113920.0,0.30099613]
[1761612574691,0.008,113930.0,113920.0,0.45372026]
[1761612575401,0.001,113930.0,113920.0,0.81152026]
[1761612575597,0.005,113930.0,113920.0,0.67179613]
[1761612575901,0.004,113930.0,113920.0,0.97770178]
[1761612576605,0.004,113930.0,113920.0,0.97670178]
[1761612576798,0.01552,113930.0,113920.0,0.97770178]
[1761612577106,0.38784,113930.0,113920.0,0.46535852]
[1761612577805,0.38784,113930.0,113920.0,0.46235852]
[1761612578605,0.38784,113930.0,113920.0,0.47099278]
[1761612578798,0.38784,113930.0,113920.0,0.62353604]
[1761612579106,0.02704,113930.0,113920.0,0.62353604]
[1761612579306,0.004,113930.0,113920.0,0.62353604]
[1761612579505,0.004,113930.0,113920.0,0.98433604]
[1761612584211,0.004,113930.0,113920.0,1.13143604]
[1761612585611,0.004,113930.0,113920.0,1.73143604]
[1761612586811,0.004,113930.0,113920.0,1.13143604]
[1761612590210,0.004,113930.0,113920.0,1.20221547]
[1761612595305,0.02704,113930.0,113920.0,1.20221547]
[1761612596114,0.004,113930.0,113920.0,1.20221547]
[1761612600116,0.02704,113930.0,113920.0,1.04967221]
[1761612600417,0.02704,113930.0,113920.0,1.20221547]
[1761612600917,0.38784,113930.0,113920.0,0.68887221]
[1761612601315,0.38784,113930.0,113920.0,0.53632895]
[1761612601516,0.38784,113930.0,113920.0,0.84141547]
[1761612601717,0.37632,113930.0,113920.0,0.84141547]
[1761612601916,0.004,113930.0,113920.0,1.13143604]
[1761612602720,0.01552,113930.0,113920.0,1.13143604]
[1761612603615,0.02704,113930.0,113920.0,1.13143604]
[1761612605120,0.02704,113930.0,113920.0,0.97889278]
[1761612607728,0.02704,113930.0,113920.0,1.13143604]
[1761612608420,0.004,113930.0,113920.0,1.13143604]
[1761612609717,0.004,113930.0,113920.0,0.67380626]
[1761612609918,0.004,113930.0,113920.0,1.13143604]
[1761612611322,0.004,113930.0,113920.0,0.67380626]
[1761612611524,0.004,113930.0,113920.0,1.21017995]
[1761612612923,0.004,113930.0,113920.0,0.75255017]
[1761612613226,0.004,113930.0,113920.0,1.21017995]
[1761612621937,0.004,113930.0,113920.0,2.10565995]
[1761612623337,0.3608,113950.0,113940.0,0.1446266]
[1761612623538,0.40750435,113970.0,113960.0,0.01359]
[1761612623747,0.39667541,113970.0,113960.0,0.60224098]
[1761612623934,0.38515541,113970.0,113960.0,0.60224098]
[1761612624434,0.3608,113970.0,113960.0,0.60224098]
[1761612625033,0.3648,113970.0,113960.0,0.60524098]
[1761612626633,0.3628,113970.0,113960.0,0.60724098]
[1761612626836,0.38584,113970.0,113960.0,0.46352057]
[1761612629345,0.38584,113970.0,113960.0,0.15843405]
[1761612629534,0.38584,113970.0,113960.0,0.45469772]
[1761612630343,0.37432,113970.0,113960.0,0.45469772]
[1761612630948,0.38584,113970.0,113960.0,0.45469772]
[1761612631554,0.38584,113970.0,113960.0,0.463306]
[1761612631751,0.38584,113970.0,113960.0,0.36694652]
[1761612632252,0.38584,113970.0,113960.0,0.45469772]
[1761612633848,0.38584,113970.0,113960.0,0.30215446]
[1761612634050,0.38584,113970.0,113960.0,0.06186]
[1761612634356,0.38584,113970.0,113960.0,0.45469772]
[1761612635150,0.38584,113970.0,113960.0,0.36694652]
[1761612636145,0.53838326,113970.0,113960.0,0.21440326]
[1761612636350,0.54690326,113970.0,113960.0,0.005]
[1761612636557,0.56690326,113970.0,113960.0,0.005]
[1761612636744,0.24999882,113970.0,113960.0,0.005]
[1761612636947,0.40620643,113970.0,113960.0,0.005]
[1761612637149,0.42620643,113970.0,113960.0,0.005]
[1761612637460,0.40620643,113970.0,113960.0,0.005]
[1761612637649,0.22999882,113970.0,113960.0,0.005]
[1761612637848,0.07745556,113970.0,113960.0,0.005]
[1761612638055,0.21002577,113970.0,113960.0,0.005]
[1761612638252,0.05745556,113970.0,113960.0,0.005]
[1761612638957,0.05745556,113970.0,113960.0,0.0264]
[1761612639154,0.04893556,113970.0,113960.0,0.04937]
[1761612639355,0.04893556,113970.0,113960.0,0.30264141]
[1761612639557,0.40973556,113970.0,113960.0,0.30264141]
[1761612640247,0.40973556,113970.0,113960.0,0.21489021]
[1761612640452,0.40973556,113970.0,113960.0,0.30264141]
[1761612640652,0.38584,113970.0,113960.0,0.30264141]
[1761612640859,0.38584,113970.0,113960.0,0.21489021]
[1761612641358,0.38584,113970.0,113960.0,0.30264141]
[1761612641957,0.38584,113970.0,113960.0,0.21489021]
[1761612643061,0.38584,113970.0,113960.0,0.06232]
[1761612643364,0.39436,113970.0,113960.0,0.005]
[1761612643556,0.41825983,113970.0,113960.0,0.005]
[1761612648057,0.41825983,113970.0,113960.0,0.0264]
[1761612648855,0.41825983,113970.0,113960.0,0.04937]
[1761612649264,0.42625983,113970.0,113960.0,0.04637]
[1761612650264,0.42625983,113970.0,113960.0,0.002]
[1761612650458,1.02625983,113970.0,113960.0,0.002]
[1761612653655,0.66545983,113970.0,113960.0,0.002]
[1761612654253,0.65693983,113970.0,113960.0,0.21189021]
[1761612654454,0.05693983,113970.0,113960.0,0.21189021]
[1761612661771,0.04541983,113970.0,113960.0,0.21189021]
[1761612662069,0.05756418,113970.0,113960.0,0.45221162]
[1761612662268,0.03389983,113970.0,113960.0,0.45221162]
[1761612662570,0.03389983,113970.0,113960.0,0.29964141]
[1761612666374,0.03389983,113970.0,113960.0,0.45221162]
[1761612667774,0.03389983,113970.0,113960.0,0.29964141]
[1761612668777,0.03389983,113970.0,113960.0,0.45221162]
[1761612669277,0.03389983,113970.0,113960.0,0.29964141]
[1761612669782,0.03389983,113970.0,113960.0,0.45221162]
[1761612671980,0.01,113970.0,113960.0,1.05221162]
[1761612675581,0.03304,113970.0,113960.0,0.7470712]
[1761612675777,0.03304,113970.0,113960.0,0.29964141]
[1761612676487,0.03304,113970.0,113960.0,0.1470712]
[1761612676786,0.03304,113970.0,113960.0,0.29964141]
[1761612677981,0.03304,113970.0,113960.0,0.44674141]
[1761612682885,0.03304,113970.0,113940.0,0.33266432]
[1761612682886,0.01319,113950.0,113940.0,0.07874391]
[1761612683090,0.05813,113940.0,113890.0,0.39327438]
[1761612683289,0.04494,113900.0,113890.0,0.21028021]
[1761612683591,0.05813,113900.0,113890.0,1.09244021]
[1761612683793,0.05813,113900.0,113890.0,0.19716021]
[1761612684092,0.1459274,113900.0,113890.0,1.09244021]
[1761612684592,0.1459274,113900.0,113890.0,1.10556021]
[1761612684782,0.1479274,113900.0,113890.0,1.11556021]
[1761612684981,0.002,113900.0,113890.0,1.35593552]
[1761612685598,0.002,113900.0,113890.0,1.95593552]
[1761612685894,0.002,113900.0,113890.0,1.9715505]
[1761612686089,0.002,113900.0,113890.0,1.8837453]
[1761612686287,0.002,113900.0,113890.0,1.56399]
[1761612686484,0.002,113900.0,113890.0,1.8837453]
[1761612688193,0.002,113900.0,113890.0,0.3884653]
[1761612688493,0.002,113900.0,113890.0,1.2839453]
[1761612689895,0.002,113900.0,113890.0,1.4310453]
[1761612690489,0.002,113900.0,113890.0,0.5355653]
[1761612690687,0.002,113900.0,113890.0,1.5188904]
[1761612691387,0.1009582,113940.0,113930.0,0.04332]
[1761612691388,0.05618,113940.0,113930.0,0.04332]
[1761612691586,0.08118493,113940.0,113930.0,0.04332]
[1761612691990,0.05618,113940.0,113930.0,0.04332]
[1761612692694,0.05718,113940.0,113930.0,0.04332]
[1761612692993,0.04399,113940.0,113930.0,0.3769453]
[1761612693894,0.04599,113940.0,113930.0,0.3799453]
[1761612694693,0.02459,113940.0,113930.0,0.4677196]
[1761612694998,0.003,113940.0,113930.0,0.4707196]
[1761612696296,0.002,113940.0,113930.0,0.4707196]
[1761612696999,0.05677,113960.0,113950.0,0.04332]
[1761612697192,0.05677,113960.0,113950.0,0.93888]
[1761612697593,0.05677,113960.0,113950.0,0.95275]
[1761612698098,0.04499,113960.0,113950.0,0.95975]
[1761612698700,0.02459,113960.0,113950.0,1.2795053]
[1761612699195,0.003,113960.0,113950.0,1.3672642]
[1761612699597,0.05677,113990.0,113980.0,0.04332]
[1761612699794,0.08218276,113990.0,113980.0,0.05719]
[1761612699994,0.04299,113990.0,113980.0,0.05719]
[1761612700199,0.04299,113990.0,113980.0,0.29537635]
[1761612700600,0.05677,113990.0,113980.0,0.29537635]
[1761612700801,0.06277,113990.0,113980.0,0.29737635]
[1761612700991,0.04899,113990.0,113980.0,0.29737635]
[1761612701500,0.04899,113990.0,113980.0,0.38511205]
[1761612701702,0.04999,113990.0,113980.0,0.38511205]
[1761612702202,0.11284504,113990.0,113980.0,0.38511205]
[1761612702898,0.11284504,113990.0,113980.0,0.29737635]
[1761612703300,0.11284504,113990.0,113980.0,0.04532]
[1761612703602,0.11284504,113990.0,113980.0,0.28350635]
[1761612704806,0.11284504,113990.0,113980.0,0.04532]
[1761612705100,0.08918069,113990.0,113980.0,0.04532]
[1761612709916,0.08918069,113990.0,113980.0,0.35024368]
[1761612710299,0.08918069,113990.0,113980.0,0.19778184]
[1761612710606,0.24164253,113990.0,113980.0,0.17627184]
[1761612710803,0.26530688,113990.0,113980.0,0.02381]
[1761612711003,0.26530688,113990.0,113980.0,0.17627184]
[1761612711498,0.11284504,113990.0,113980.0,0.17627184]
[1761612711703,0.26530688,113990.0,113980.0,0.17627184]
[1761612712000,0.23012688,113990.0,113980.0,0.19778184]
[1761612712200,0.02859,113990.0,113980.0,0.36411368]
[1761612712394,0.04999,113990.0,113980.0,0.36411368]
[1761612712799,0.02859,113990.0,113980.0,0.60431132]
[1761612712994,0.04999,113990.0,113980.0,0.60431132]
[1761612713402,0.04999,113990.0,113980.0,0.36411368]
[1761612713809,0.04999,113990.0,113980.0,0.29734936]
[1761612716814,0.007,113990.0,113980.0,0.29734936]
[1761612718510,0.11320992,114020.0,114010.0,0.04543]
[1761612718706,0.27863306,114020.0,114010.0,0.04543]
[1761612719416,0.11496871,114020.0,114010.0,0.04543]
[1761612719614,0.1385151,114020.0,114010.0,0.04543]
[1761612720002,0.1535151,114020.0,114010.0,0.04843]
[1761612720314,0.12996871,114020.0,114010.0,0.04843]
[1761612720816,0.12796871,114020.0,114010.0,0.04843]
[1761612721018,0.11496871,114020.0,114010.0,0.04543]
[1761612721312,0.14052727,114020.0,114010.0,0.007]
[1761612721508,0.14052727,114020.0,114010.0,0.02985]
[1761612721711,0.14052727,114020.0,114010.0,0.05243]
[1761612722107,0.11696871,114020.0,114010.0,0.05243]
[1761612722302,0.16416904,114020.0,114010.0,0.05243]
[1761612723715,0.76416904,114020.0,114010.0,0.05243]
[1761612724211,0.4023284,114020.0,114010.0,0.007]
[1761612724416,0.35516418,114020.0,114010.0,0.007]
[1761612724616,0.13274347,114020.0,114010.0,0.007]
[1761612725005,0.11700463,114020.0,114010.0,0.007]
[1761612725413,0.11701061,114020.0,114010.0,0.007]
[1761612725617,0.11701061,114020.0,114010.0,0.05243]
[1761612726916,0.11701061,114020.0,114010.0,0.02985]
[1761612727609,0.11701061,114020.0,114010.0,0.007]
[1761612729424,0.08554314,114020.0,114010.0,0.02946]
[1761612729616,0.08554314,114020.0,114010.0,0.05156]
[1761612729813,0.08554314,114020.0,114010.0,0.28971936]
[1761612730118,0.11896347,114020.0,114010.0,0.30363936]